[Event "GrandPrix_29.05"]
[Site "Chess.com"]
[Date "2020.05.29"]
[Round "3"]
[White "KruHor"]
[Black "Andrei_Belozerov"]
[Result "0-1"]
[WhiteElo "2522"]
[BlackElo "2672"]
[TimeControl "600+2"]
[EndTime "10:26:11 PDT"]
[Termination "Andrei_Belozerov won by resignation"]

1. d4 {[%clk 0:09:20.2]} 1... d5 {[%clk 0:09:59.7]} 2. Nf3 {[%clk 0:09:18.8]}
2... Nf6 {[%clk 0:10:00.1]} 3. Bg5 {[%clk 0:09:11]} 3... Ne4 {[%clk 0:10:00.2]}
4. Bh4 {[%clk 0:09:11.5]} 4... c5 {[%clk 0:10:00.7]} 5. dxc5 {[%clk 0:09:05.4]}
5... Nc6 {[%clk 0:09:28.2]} 6. e3 {[%clk 0:08:58.1]} 6... g6 {[%clk 0:09:03]} 7.
Nbd2 {[%clk 0:08:56.7]} 7... Nxc5 {[%clk 0:08:59.5]} 8. Nb3 {[%clk 0:08:56.2]}
8... Ne4 {[%clk 0:08:12.5]} 9. Bd3 {[%clk 0:08:46]} 9... Bg7 {[%clk 0:08:02]}
10. Bxe4 {[%clk 0:08:08.5]} 10... dxe4 {[%clk 0:08:00.3]} 11. Qxd8+ {[%clk
0:08:08.7]} 11... Nxd8 {[%clk 0:07:38.5]} 12. Nfd4 {[%clk 0:08:08.3]} 12... Ne6
{[%clk 0:06:50.9]} 13. O-O-O {[%clk 0:07:58.4]} 13... Nxd4 {[%clk 0:06:37.9]}
14. Nxd4 {[%clk 0:07:57.5]} 14... Bd7 {[%clk 0:06:36.5]} 15. Rd2 {[%clk
0:07:51]} 15... f6 {[%clk 0:06:13.7]} 16. Ne2 {[%clk 0:07:00.8]} 16... O-O-O
{[%clk 0:05:59.5]} 17. Nc3 {[%clk 0:06:29]} 17... Bc6 {[%clk 0:05:52.8]} 18.
Rhd1 {[%clk 0:06:21.4]} 18... Rxd2 {[%clk 0:05:51]} 19. Rxd2 {[%clk 0:06:21.7]}
19... Rd8 {[%clk 0:05:52.4]} 20. Bg3 {[%clk 0:06:09.5]} 20... e5 {[%clk
0:05:49]} 21. Ne2 {[%clk 0:05:42.3]} 21... Bf8 {[%clk 0:05:31.6]} 22. Rxd8+
{[%clk 0:05:17.3]} 22... Kxd8 {[%clk 0:05:31.8]} 23. Kd2 {[%clk 0:05:16.1]}
23... Kd7 {[%clk 0:05:28.6]} 24. c4 {[%clk 0:05:01]} 24... b5 {[%clk 0:05:18.8]}
25. cxb5 {[%clk 0:04:52.9]} 25... Bxb5 {[%clk 0:05:19.2]} 26. Nc3 {[%clk
0:04:53.1]} 26... Bc6 {[%clk 0:05:19.5]} 27. a3 {[%clk 0:04:48.3]} 27... a5
{[%clk 0:05:15]} 28. Ke2 {[%clk 0:04:25.8]} 28... Ke6 {[%clk 0:05:14.9]} 29. f3
{[%clk 0:04:21.5]} 29... exf3+ {[%clk 0:05:15.3]} 30. gxf3 {[%clk 0:04:21.1]}
30... f5 {[%clk 0:05:09.5]} 31. f4 {[%clk 0:04:13.2]} 31... exf4 {[%clk
0:04:48.1]} 32. Bxf4 {[%clk 0:04:12.1]} 32... Be7 {[%clk 0:04:44.9]} 33. Bc7
{[%clk 0:04:10.6]} 33... a4 {[%clk 0:04:44.3]} 34. Kf2 {[%clk 0:04:03.4]} 34...
g5 {[%clk 0:04:44.4]} 35. Bb8 {[%clk 0:03:47]} 35... h5 {[%clk 0:04:44.5]} 36.
Ne2 {[%clk 0:03:40.6]} 36... Bf6 {[%clk 0:04:37.3]} 37. Nc3 {[%clk 0:03:29.7]}
37... h4 {[%clk 0:04:32.2]} 38. Bc7 {[%clk 0:03:25.1]} 38... Kf7 {[%clk
0:04:15.8]} 39. Bb6 {[%clk 0:02:52.9]} 39... Kg6 {[%clk 0:04:07.7]} 40. Bd4
{[%clk 0:02:52.4]} 40... Bxd4 {[%clk 0:03:12.6]} 41. exd4 {[%clk 0:02:52.9]}
41... Kf6 {[%clk 0:03:14]} 42. Ne2 {[%clk 0:02:11.8]} 42... Ke6 {[%clk
0:02:32.3]} 43. Nc3 {[%clk 0:02:11.8]} 43... Kd6 {[%clk 0:02:33.4]} 44. Na2
{[%clk 0:01:08.2]} 44... f4 {[%clk 0:02:10.6]} 45. Nb4 {[%clk 0:00:45.2]} 45...
g4 {[%clk 0:01:43.4]} 46. Nd3 {[%clk 0:00:38.4]} 46... g3+ {[%clk 0:01:43.7]}
47. Kg1 {[%clk 0:00:36.4]} 47... f3 {[%clk 0:01:41.3]} 48. hxg3 {[%clk
0:00:35.7]} 48... hxg3 {[%clk 0:01:41.9]} 0-1

[Event "GrandPrix_29.05"]
[Site "Chess.com"]
[Date "2020.05.29"]
[Round "3"]
[White "OK97"]
[Black "Durarbayli"]
[Result "1-0"]
[WhiteElo "2719"]
[BlackElo "2554"]
[TimeControl "600+2"]
[EndTime "10:26:28 PDT"]
[Termination "OK97 won by resignation"]

1. e4 {[%clk 0:10:01.9]} 1... e5 {[%clk 0:09:48.9]} 2. Nf3 {[%clk 0:10:02.2]}
2... Nc6 {[%clk 0:09:47.7]} 3. Bb5 {[%clk 0:10:02.5]} 3... a6 {[%clk 0:09:47.9]}
4. Ba4 {[%clk 0:10:03.4]} 4... Nge7 {[%clk 0:09:48.4]} 5. c3 {[%clk 0:09:49.4]}
5... g6 {[%clk 0:09:41.6]} 6. d4 {[%clk 0:09:45.9]} 6... exd4 {[%clk 0:09:41]}
7. cxd4 {[%clk 0:09:47.8]} 7... b5 {[%clk 0:09:42.3]} 8. Bb3 {[%clk 0:09:29.6]}
8... Bg7 {[%clk 0:09:41.2]} 9. O-O {[%clk 0:08:52]} 9... d6 {[%clk 0:09:13.2]}
10. Nc3 {[%clk 0:08:45.1]} 10... Na5 {[%clk 0:08:20.9]} 11. Bc2 {[%clk
0:08:32.3]} 11... O-O {[%clk 0:08:20.5]} 12. h3 {[%clk 0:07:20.7]} 12... c5
{[%clk 0:08:18.9]} 13. dxc5 {[%clk 0:05:51.1]} 13... dxc5 {[%clk 0:08:17.7]} 14.
Be3 {[%clk 0:05:51]} 14... Qc7 {[%clk 0:07:20.7]} 15. Qc1 {[%clk 0:05:42]} 15...
Be6 {[%clk 0:06:31.8]} 16. Bf4 {[%clk 0:05:09.2]} 16... Qb7 {[%clk 0:06:23.4]}
17. e5 {[%clk 0:04:57.6]} 17... Bf5 {[%clk 0:05:10.5]} 18. Re1 {[%clk 0:04:05]}
18... Bxc2 {[%clk 0:03:21.4]} 19. Qxc2 {[%clk 0:04:06.9]} 19... Nd5 {[%clk
0:03:22.6]} 20. Nxd5 {[%clk 0:03:55.8]} 20... Qxd5 {[%clk 0:03:24.5]} 21. Red1
{[%clk 0:03:29.6]} 21... Qc4 {[%clk 0:02:53.2]} 22. Qd2 {[%clk 0:03:30.4]} 22...
Nc6 {[%clk 0:02:18]} 23. Qe3 {[%clk 0:03:30]} 23... Nb4 {[%clk 0:01:47.1]} 24.
b3 {[%clk 0:03:05.6]} 24... Qc2 {[%clk 0:01:33.1]} 25. a3 {[%clk 0:02:58.5]}
25... Nc6 {[%clk 0:01:19]} 26. Rac1 {[%clk 0:02:58.7]} 26... Qb2 {[%clk
0:00:41.4]} 27. Rxc5 {[%clk 0:02:52.7]} 27... Na5 {[%clk 0:00:42.4]} 28. Rd3
{[%clk 0:01:54.1]} 28... Qxa3 {[%clk 0:00:41.5]} 29. e6 {[%clk 0:01:41.7]} 29...
fxe6 {[%clk 0:00:42]} 30. Rc7 {[%clk 0:01:06.6]} 30... Qa1+ {[%clk 0:00:12.7]}
31. Kh2 {[%clk 0:01:06.9]} 31... Rad8 {[%clk 0:00:02.9]} 32. Qxe6+ {[%clk
0:01:03.4]} 32... Kh8 {[%clk 0:00:04.4]} 33. Rxd8 {[%clk 0:01:00.3]} 33... Rxd8
{[%clk 0:00:06.3]} 34. Rxg7 {[%clk 0:00:50.7]} 34... Qxg7 {[%clk 0:00:03.6]} 35.
Be5 {[%clk 0:00:51.3]} 1-0

[Event "GrandPrix_29.05"]
[Site "Chess.com"]
[Date "2020.05.29"]
[Round "3"]
[White "AlexPapasimakopoulos"]
[Black "Tormoz"]
[Result "1-0"]
[WhiteElo "2308"]
[BlackElo "2466"]
[TimeControl "600+2"]
[EndTime "10:26:30 PDT"]
[Termination "AlexPapasimakopoulos won by resignation"]

1. d4 {[%clk 0:10:01.9]} 1... d5 {[%clk 0:09:59.6]} 2. c4 {[%clk 0:10:00.3]}
2... e6 {[%clk 0:10:00.3]} 3. Nc3 {[%clk 0:10:01]} 3... Nf6 {[%clk 0:10:00.3]}
4. cxd5 {[%clk 0:10:01.8]} 4... exd5 {[%clk 0:10:01.3]} 5. Bg5 {[%clk
0:10:02.7]} 5... c6 {[%clk 0:10:02.1]} 6. e3 {[%clk 0:10:01.6]} 6... Bf5 {[%clk
0:10:01.6]} 7. Qf3 {[%clk 0:10:02.4]} 7... Bg6 {[%clk 0:10:02.8]} 8. Bxf6 {[%clk
0:10:03.6]} 8... Qxf6 {[%clk 0:10:04.7]} 9. Qxf6 {[%clk 0:10:04.7]} 9... gxf6
{[%clk 0:10:06.6]} 10. Nf3 {[%clk 0:10:05.8]} 10... Nd7 {[%clk 0:10:07.9]} 11.
Kd2 {[%clk 0:09:54.5]} 11... Nb6 {[%clk 0:10:07.2]} 12. g3 {[%clk 0:09:47.9]}
12... Bb4 {[%clk 0:10:06.2]} 13. a3 {[%clk 0:09:48]} 13... Be7 {[%clk
0:09:48.8]} 14. Bd3 {[%clk 0:09:32.1]} 14... O-O-O {[%clk 0:09:40.8]} 15. b3
{[%clk 0:09:21.3]} 15... Kb8 {[%clk 0:09:32.6]} 16. Nh4 {[%clk 0:09:13.3]} 16...
Nc8 {[%clk 0:09:33.3]} 17. Nf5 {[%clk 0:09:11.5]} 17... Rhe8 {[%clk 0:09:25]}
18. h4 {[%clk 0:09:03]} 18... Nd6 {[%clk 0:09:22.4]} 19. Nxd6 {[%clk 0:08:50.7]}
19... Bxd6 {[%clk 0:09:22.3]} 20. h5 {[%clk 0:08:52.4]} 20... Bxd3 {[%clk
0:09:22.6]} 21. Kxd3 {[%clk 0:08:54.3]} 21... h6 {[%clk 0:09:21.7]} 22. b4
{[%clk 0:08:48.8]} 22... Rg8 {[%clk 0:09:04.5]} 23. Rab1 {[%clk 0:08:38.1]}
23... Kc7 {[%clk 0:09:03.4]} 24. a4 {[%clk 0:08:25.1]} 24... Be7 {[%clk
0:07:08.1]} 25. Rhc1 {[%clk 0:08:18.7]} 25... Rg5 {[%clk 0:06:11.1]} 26. Rh1
{[%clk 0:08:19]} 26... a5 {[%clk 0:05:40.8]} 27. b5 {[%clk 0:07:59.5]} 27... c5
{[%clk 0:05:15.4]} 28. dxc5 {[%clk 0:07:12.2]} 28... Bxc5 {[%clk 0:05:13.6]} 29.
Rbc1 {[%clk 0:06:42.2]} 29... Kb6 {[%clk 0:05:03.6]} 30. Ne2 {[%clk 0:06:34.3]}
30... Rg4 {[%clk 0:04:50.3]} 31. Nf4 {[%clk 0:06:29.3]} 31... f5 {[%clk
0:04:33.5]} 32. Rhd1 {[%clk 0:06:00.1]} 32... d4 {[%clk 0:04:05.1]} 33. Ke2
{[%clk 0:05:24]} 33... Rgg8 {[%clk 0:04:01.5]} 34. exd4 {[%clk 0:05:16.4]} 34...
Rge8+ {[%clk 0:03:38.1]} 35. Kf3 {[%clk 0:05:13.6]} 35... Bxd4 {[%clk
0:03:34.6]} 36. Rc4 {[%clk 0:05:04]} 36... Re4 {[%clk 0:03:17.3]} 37. g4 {[%clk
0:03:56.7]} 37... Be5 {[%clk 0:02:20.5]} 38. Rxd8 {[%clk 0:02:41.3]} 38... Rxc4
{[%clk 0:02:19.5]} 39. Nd5+ {[%clk 0:02:37.5]} 39... Kc5 {[%clk 0:02:19.8]} 40.
Ne3 {[%clk 0:02:30]} 40... fxg4+ {[%clk 0:01:42.5]} 41. Ke2 {[%clk 0:02:10.1]}
41... Rd4 {[%clk 0:01:16.1]} 42. Rc8+ {[%clk 0:02:10.4]} 42... Kb4 {[%clk
0:00:27.3]} 43. Nc2+ {[%clk 0:02:10.2]} 43... Kb3 {[%clk 0:00:27.4]} 44. Nxd4+
{[%clk 0:02:11.1]} 44... Bxd4 {[%clk 0:00:29.3]} 45. Rd8 {[%clk 0:02:06.1]}
45... Bc5 {[%clk 0:00:24.6]} 46. Rd5 {[%clk 0:01:56.9]} 46... Bb4 {[%clk
0:00:12.4]} 47. b6 {[%clk 0:01:52.3]} 47... Kxa4 {[%clk 0:00:12.8]} 48. Rd7
{[%clk 0:01:53.9]} 48... Kb5 {[%clk 0:00:13.5]} 49. Rxb7 {[%clk 0:01:55.5]}
49... a4 {[%clk 0:00:13.6]} 50. Rb8 {[%clk 0:01:50.4]} 50... Bc5 {[%clk
0:00:12.8]} 51. b7 {[%clk 0:01:49]} 1-0

[Event "GrandPrix_29.05"]
[Site "Chess.com"]
[Date "2020.05.29"]
[Round "3"]
[White "Olga_Girya"]
[Black "kostasam18"]
[Result "1-0"]
[WhiteElo "2309"]
[BlackElo "2062"]
[TimeControl "600+2"]
[EndTime "10:26:37 PDT"]
[Termination "Olga_Girya won by resignation"]

1. d4 {[%clk 0:10:01.9]} 1... Nf6 {[%clk 0:10:00]} 2. Nf3 {[%clk 0:09:59.6]}
2... d5 {[%clk 0:10:00.1]} 3. c4 {[%clk 0:09:59.7]} 3... e6 {[%clk 0:10:00.1]}
4. Nc3 {[%clk 0:09:59.6]} 4... dxc4 {[%clk 0:09:58.1]} 5. e3 {[%clk 0:09:51.6]}
5... a6 {[%clk 0:09:57.9]} 6. Bxc4 {[%clk 0:09:51.9]} 6... b5 {[%clk 0:09:58.4]}
7. Be2 {[%clk 0:09:37.3]} 7... Bb7 {[%clk 0:09:58.6]} 8. O-O {[%clk 0:09:36.5]}
8... Nbd7 {[%clk 0:09:57.4]} 9. a4 {[%clk 0:09:31.7]} 9... b4 {[%clk 0:09:56.9]}
10. Nb1 {[%clk 0:09:32.6]} 10... c5 {[%clk 0:09:48]} 11. b3 {[%clk 0:09:20.1]}
11... Be7 {[%clk 0:09:32.2]} 12. Bb2 {[%clk 0:09:20.7]} 12... O-O {[%clk
0:09:32.2]} 13. Nbd2 {[%clk 0:09:18.9]} 13... a5 {[%clk 0:09:19.1]} 14. Rc1
{[%clk 0:09:12.3]} 14... Rc8 {[%clk 0:09:17]} 15. Nc4 {[%clk 0:08:42.7]} 15...
cxd4 {[%clk 0:08:58.2]} 16. Bxd4 {[%clk 0:07:23]} 16... Nc5 {[%clk 0:07:57]} 17.
Bxc5 {[%clk 0:07:11.5]} 17... Rxc5 {[%clk 0:07:49.3]} 18. Qxd8 {[%clk
0:06:48.1]} 18... Rxd8 {[%clk 0:07:41.3]} 19. Nfe5 {[%clk 0:06:47.6]} 19... Nd7
{[%clk 0:07:19.9]} 20. Nxd7 {[%clk 0:05:46.2]} 20... Rxd7 {[%clk 0:07:18.9]} 21.
Rfd1 {[%clk 0:05:46.8]} 21... Rd8 {[%clk 0:06:53.5]} 22. Rxd8+ {[%clk
0:05:02.3]} 22... Bxd8 {[%clk 0:06:50.7]} 23. Rd1 {[%clk 0:05:04.2]} 23... Rd5
{[%clk 0:06:34.6]} 24. Rxd5 {[%clk 0:03:46.2]} 24... Bxd5 {[%clk 0:06:30.3]} 25.
Nd2 {[%clk 0:03:47.2]} 25... Kf8 {[%clk 0:06:16.1]} 26. Bf3 {[%clk 0:03:21]}
26... Bxf3 {[%clk 0:06:03.9]} 27. Nxf3 {[%clk 0:03:20.9]} 27... Ke7 {[%clk
0:06:02]} 28. Kf1 {[%clk 0:03:00.1]} 28... Kd6 {[%clk 0:06:00.5]} 29. Ke2 {[%clk
0:03:01.3]} 29... f5 {[%clk 0:05:55.1]} 30. Kd3 {[%clk 0:02:49.9]} 30... Kd5
{[%clk 0:05:42.3]} 31. Nd2 {[%clk 0:02:47.6]} 31... g6 {[%clk 0:05:24.4]} 32.
e4+ {[%clk 0:02:02.4]} 32... fxe4+ {[%clk 0:05:09.2]} 33. Nxe4 {[%clk
0:02:02.8]} 33... e5 {[%clk 0:05:06.2]} 34. f3 {[%clk 0:02:00.1]} 34... h5
{[%clk 0:05:03.7]} 35. Nd2 {[%clk 0:01:50]} 35... Bg5 {[%clk 0:04:57.8]} 36. Nc4
{[%clk 0:01:50.5]} 36... Bd8 {[%clk 0:04:57.8]} 37. Ne3+ {[%clk 0:01:51.5]}
37... Ke6 {[%clk 0:04:35.7]} 38. Ke4 {[%clk 0:01:53.4]} 38... g5 {[%clk
0:04:29.8]} 39. Nc4 {[%clk 0:01:47.9]} 39... Bc7 {[%clk 0:04:29.9]} 40. g4
{[%clk 0:01:36.7]} 40... hxg4 {[%clk 0:02:58.6]} 41. fxg4 {[%clk 0:01:38.6]}
41... Bd8 {[%clk 0:02:28.3]} 42. Nxe5 {[%clk 0:01:37.2]} 42... Bc7 {[%clk
0:02:28.4]} 43. Nc4 {[%clk 0:01:32]} 43... Bxh2 {[%clk 0:01:06.1]} 44. Nxa5
{[%clk 0:01:32]} 44... Kd6 {[%clk 0:01:05.6]} 45. Nb7+ {[%clk 0:01:20.2]} 45...
Kc6 {[%clk 0:01:01.3]} 46. Nd8+ {[%clk 0:01:20.5]} 46... Kc5 {[%clk 0:01:00.8]}
47. Ne6+ {[%clk 0:01:20.7]} 47... Kb6 {[%clk 0:00:53.6]} 48. Nxg5 {[%clk
0:01:22.6]} 48... Kc5 {[%clk 0:00:53.6]} 49. Nf3 {[%clk 0:01:21.3]} 49... Bd6
{[%clk 0:00:53.1]} 50. g5 {[%clk 0:01:18.5]} 50... Bf8 {[%clk 0:00:52]} 51. g6
{[%clk 0:01:18.4]} 51... Bg7 {[%clk 0:00:51.1]} 52. Nh4 {[%clk 0:01:17.8]} 1-0

[Event "GrandPrix_29.05"]
[Site "Chess.com"]
[Date "2020.05.29"]
[Round "3"]
[White "iceboy88"]
[Black "Valeriy_Neverov"]
[Result "0-1"]
[WhiteElo "2519"]
[BlackElo "2596"]
[TimeControl "600+2"]
[EndTime "10:26:38 PDT"]
[Termination "Valeriy_Neverov won on time"]

1. Nf3 {[%clk 0:10:01.9]} 1... Nf6 {[%clk 0:09:59.6]} 2. c4 {[%clk 0:10:01.4]}
2... e6 {[%clk 0:09:56.4]} 3. Nc3 {[%clk 0:09:58.2]} 3... d5 {[%clk 0:09:55.7]}
4. d4 {[%clk 0:09:55.6]} 4... Be7 {[%clk 0:09:55.8]} 5. Bf4 {[%clk 0:09:54.5]}
5... O-O {[%clk 0:09:55.2]} 6. Rc1 {[%clk 0:09:55.5]} 6... c6 {[%clk 0:08:30.9]}
7. e3 {[%clk 0:09:54.3]} 7... b6 {[%clk 0:08:14.7]} 8. cxd5 {[%clk 0:09:21.5]}
8... Nxd5 {[%clk 0:08:01.4]} 9. Bd3 {[%clk 0:08:21.7]} 9... Nxf4 {[%clk
0:07:55.8]} 10. exf4 {[%clk 0:08:22.6]} 10... Ba6 {[%clk 0:07:45.3]} 11. O-O
{[%clk 0:08:16.4]} 11... Bxd3 {[%clk 0:07:40.6]} 12. Qxd3 {[%clk 0:08:17.4]}
12... Nd7 {[%clk 0:07:41.3]} 13. Rfd1 {[%clk 0:07:09]} 13... Rc8 {[%clk
0:05:57.3]} 14. Qa6 {[%clk 0:06:47.7]} 14... Rc7 {[%clk 0:05:49.9]} 15. a3
{[%clk 0:05:53.6]} 15... Qb8 {[%clk 0:04:57.4]} 16. g3 {[%clk 0:05:40.6]} 16...
Rd8 {[%clk 0:04:53.2]} 17. h4 {[%clk 0:05:34.2]} 17... h6 {[%clk 0:04:50.3]} 18.
b4 {[%clk 0:05:22.6]} 18... b5 {[%clk 0:04:25.6]} 19. Ne4 {[%clk 0:04:09.9]}
19... Qb6 {[%clk 0:03:25.7]} 20. Qxb6 {[%clk 0:04:09.6]} 20... axb6 {[%clk
0:03:23.8]} 21. d5 {[%clk 0:03:22.1]} 21... exd5 {[%clk 0:03:11.3]} 22. Nc3
{[%clk 0:03:13.5]} 22... Rcc8 {[%clk 0:02:52.2]} 23. Nd4 {[%clk 0:03:01.4]}
23... Bf6 {[%clk 0:02:44.5]} 24. Nce2 {[%clk 0:03:02.3]} 24... c5 {[%clk
0:02:18.6]} 25. Nxb5 {[%clk 0:02:42.9]} 25... d4 {[%clk 0:01:50.7]} 26. Nd6
{[%clk 0:01:45.5]} 26... Ra8 {[%clk 0:01:50.3]} 27. Nc4 {[%clk 0:01:04.1]} 27...
Rdc8 {[%clk 0:01:25.2]} 28. b5 {[%clk 0:00:47.5]} 28... Ra4 {[%clk 0:01:19.8]}
29. Rc2 {[%clk 0:00:39.9]} 29... Rb8 {[%clk 0:01:08.4]} 30. Nc1 {[%clk
0:00:34.6]} 30... Nf8 {[%clk 0:01:01.3]} 31. Nd3 {[%clk 0:00:34.5]} 31... Ne6
{[%clk 0:00:56.2]} 32. h5 {[%clk 0:00:19.6]} 32... Nc7 {[%clk 0:00:49.2]} 33.
Rb1 {[%clk 0:00:19.5]} 33... Nd5 {[%clk 0:00:46.4]} 34. Kg2 {[%clk 0:00:14.3]}
34... Nc3 {[%clk 0:00:42.1]} 35. Rbb2 {[%clk 0:00:02.6]} 35... Rxc4 {[%clk
0:00:39.9]} 0-1

[Event "GrandPrix_29.05"]
[Site "Chess.com"]
[Date "2020.05.29"]
[Round "3"]
[White "DariaVoit"]
[Black "Igrok3069"]
[Result "0-1"]
[WhiteElo "2236"]
[BlackElo "2569"]
[TimeControl "600+2"]
[EndTime "10:26:39 PDT"]
[Termination "Igrok3069 won by resignation"]

1. d4 {[%clk 0:10:01.9]} 1... d5 {[%clk 0:10:00.3]} 2. c4 {[%clk 0:10:00.1]}
2... c6 {[%clk 0:10:01.4]} 3. Nf3 {[%clk 0:10:00.5]} 3... Nf6 {[%clk 0:10:01.1]}
4. e3 {[%clk 0:09:58.5]} 4... Bg4 {[%clk 0:10:00]} 5. h3 {[%clk 0:09:58.6]} 5...
Bh5 {[%clk 0:09:59.3]} 6. g4 {[%clk 0:09:58.7]} 6... Bg6 {[%clk 0:09:59.6]} 7.
Ne5 {[%clk 0:09:59.9]} 7... e6 {[%clk 0:09:55.2]} 8. Bg2 {[%clk 0:09:52.2]} 8...
Nbd7 {[%clk 0:09:44.7]} 9. Nxg6 {[%clk 0:09:52.4]} 9... hxg6 {[%clk 0:09:44.8]}
10. Nd2 {[%clk 0:09:17.7]} 10... g5 {[%clk 0:09:37.4]} 11. O-O {[%clk
0:09:15.1]} 11... Bd6 {[%clk 0:09:15.2]} 12. Re1 {[%clk 0:09:14.9]} 12... Nf8
{[%clk 0:08:15.3]} 13. e4 {[%clk 0:09:06.8]} 13... dxe4 {[%clk 0:08:13]} 14.
Nxe4 {[%clk 0:09:08.7]} 14... Nxe4 {[%clk 0:08:12.4]} 15. Rxe4 {[%clk
0:09:08.3]} 15... Ng6 {[%clk 0:08:09]} 16. d5 {[%clk 0:09:07.2]} 16... O-O
{[%clk 0:07:43.7]} 17. Be3 {[%clk 0:08:34.7]} 17... exd5 {[%clk 0:06:32.6]} 18.
cxd5 {[%clk 0:08:36.6]} 18... c5 {[%clk 0:06:32.6]} 19. Qd2 {[%clk 0:08:16.9]}
19... Nf4 {[%clk 0:05:47.9]} 20. Bxf4 {[%clk 0:08:10.7]} 20... Bxf4 {[%clk
0:05:00]} 21. Qd3 {[%clk 0:08:10.8]} 21... Qf6 {[%clk 0:04:47.8]} 22. Qc3 {[%clk
0:07:55.3]} 22... Bd6 {[%clk 0:02:35.8]} 23. Qxf6 {[%clk 0:07:13.2]} 23... gxf6
{[%clk 0:02:37.7]} 24. Rc1 {[%clk 0:07:12.9]} 24... Rfd8 {[%clk 0:02:27.7]} 25.
Re2 {[%clk 0:07:01.7]} 25... b5 {[%clk 0:02:24]} 26. Be4 {[%clk 0:07:00.8]}
26... c4 {[%clk 0:02:03]} 27. b3 {[%clk 0:06:54.1]} 27... cxb3 {[%clk
0:01:50.1]} 28. axb3 {[%clk 0:06:54.1]} 28... a5 {[%clk 0:01:52]} 29. Kg2 {[%clk
0:05:51.8]} 29... a4 {[%clk 0:01:50.5]} 30. bxa4 {[%clk 0:05:53.7]} 30... bxa4
{[%clk 0:01:51]} 31. Bb1 {[%clk 0:05:54.5]} 31... a3 {[%clk 0:01:40.6]} 32. Ba2
{[%clk 0:05:55.4]} 32... Rab8 {[%clk 0:01:38.3]} 33. Rcc2 {[%clk 0:05:34.7]}
33... Kg7 {[%clk 0:01:33.6]} 34. Kf3 {[%clk 0:05:20.3]} 34... Rb4 {[%clk
0:01:25.4]} 35. Kg2 {[%clk 0:04:57]} 35... Rdb8 {[%clk 0:01:00]} 36. Kf3 {[%clk
0:04:40.7]} 36... Rd4 {[%clk 0:00:54.3]} 37. Rcd2 {[%clk 0:04:29.3]} 37... Rf4+
{[%clk 0:00:48.8]} 38. Kg2 {[%clk 0:04:30.1]} 38... f5 {[%clk 0:00:42.8]} 39.
gxf5 {[%clk 0:03:51.1]} 39... Rxf5 {[%clk 0:00:44.7]} 40. Re4 {[%clk 0:03:52.3]}
40... Rf4 {[%clk 0:00:29]} 41. Rxf4 {[%clk 0:03:49.9]} 41... Bxf4 {[%clk
0:00:30.1]} 42. Rd3 {[%clk 0:03:11.9]} 42... Bd6 {[%clk 0:00:32]} 43. Rb3 {[%clk
0:03:12.8]} 43... Rd8 {[%clk 0:00:29.4]} 44. Rb7 {[%clk 0:03:02.4]} 44... Kf6
{[%clk 0:00:26.6]} 45. Kf3 {[%clk 0:03:02.3]} 45... Rc8 {[%clk 0:00:26.3]} 46.
Ke4 {[%clk 0:02:00.2]} 46... Rc2 {[%clk 0:00:26.5]} 47. Rb6 {[%clk 0:01:55.1]}
47... Ke7 {[%clk 0:00:23]} 48. Rb7+ {[%clk 0:01:53.2]} 48... Kf8 {[%clk
0:00:20.8]} 49. Rb6 {[%clk 0:01:51.5]} 49... Ke7 {[%clk 0:00:20.5]} 50. Rb7+
{[%clk 0:01:52.4]} 50... Kd8 {[%clk 0:00:21.1]} 51. Rb6 {[%clk 0:01:48.9]} 51...
Bc7 {[%clk 0:00:21.6]} 52. Bb1 {[%clk 0:01:40.5]} 52... Bxb6 {[%clk 0:00:18.8]}
53. Bxc2 {[%clk 0:01:41.6]} 53... a2 {[%clk 0:00:19.1]} 0-1